[Event "8th Brazilian Open SESC Caioba 2024"]
[Site "Caioba"]
[Date "2024.06.29"]
[Round "8.14"]
[White "Van Riemsdijk, Herman C."]
[Black "Lage, Pedro Ferreira"]
[Result "1-0"]
[ECO "C18"]
[WhiteElo "2248"]
[BlackElo "2077"]
[Annotator "RC"]
[PlyCount "83"]
[EventDate "2024.06.15"]
[EventCountry "BRA"]
[SourceTitle "playchess.com"]
[Source "ChessBase"]
[SourceQuality "1"]
[TimeControl "5400+30"]

1. e4 {[%emt 0:00:04]} e6 {[%emt 0:00:16]} 2. d4 {[%emt 0:00:07]} d5 {[%emt 0:00:14]} 3. Nc3 {[%emt 0:00:05]} Bb4 {[%emt 0:00:15]} 4. e5 {[%emt 0:00:08]} c5 {[%emt 0:00:19]} 5. a3 {[%emt 0:00:05]} Bxc3+ {[%emt 0:00:16]} 6. bxc3 {[%emt 0:00:07]} Ne7 {[%emt 0:00:49]} 7. h4 {[%emt 0:00:14]} Qc7 {[%emt 0:00:54]} 8. Qg4 {[%emt 0:00:46]} cxd4 {[%emt 0:01:56]} 9. Ne2 {[%emt 0:02:12]} Nbc6 {[%emt 0:04:54]} 10. Qxg7 {[%emt 0:00:56]} Rg8 {[%emt 0:09:32]} 11. Qxh7 {[%emt 0:00:11]} dxc3 {[%emt 0:03:26]} 12. f4 {[%emt 0:00:21]} Bd7 {[%emt 0:01:04]} 13. h5 {[%emt 0:02:44]} O-O-O {[%emt 0:02:07]} 14. Qd3 {[%emt 0:00:27]} d4 {[%emt 0:07:40]} 15. h6 {[%emt 0:02:05]} Kb8 {[%emt 0:13:24]} 16. h7 {[%emt 0:00:48]} Rh8 {[%emt 0:00:31]} 17. Rb1 {[%emt 0:01:12]} Ng6 {[%emt 0:05:56]} 18. Nxd4 {[%emt 0:14:57]} Nxd4 {[%emt 0:02:12]} 19. Qxd4 {[%emt 0:00:06]} Bb5 {[%emt 0:10:08]} 20. Qf2 {[%emt 0:00:57]} Bxf1 {[%emt 0:00:50]} 21. Qxf1 {[%emt 0:00:49]} f6 {[%emt 0:02:35]} 22. exf6 {[%emt 0:05:05]} Rxh7 {[%emt 0:02:49]} 23. Rxh7 {[%emt 0:00:51]} Qxh7 {[%emt 0:00:04]} 24. Be3 {[%emt 0:01:15]} Qh4+ {[%emt 0:07:20]} 25. Ke2 {[%emt 0:00:17]} Qxf6 {[%emt 0:04:39]} 26. Qf3 {[%emt 0:00:40]} Rd5 {[%emt 0:01:23]} 27. Qe4 {[%emt 0:03:43]} Ne7 {[%emt 0:04:20]} 28. Rh1 {[%emt 0:06:26]} Nf5 {[%emt 0:01:17]} 29. Rh3 {[%emt 0:01:27]} Qg7 {[%emt 0:06:17]} 30. Kf3 {[%emt 0:04:10]} Qf6 {[%emt 0:05:27]} 31. Bf2 {[%emt 0:05:30]} Nd4+ {[%emt 0:01:25]} 32. Kg3 {[%emt 0:02:43]} a6 {[%emt 0:01:01]} 33. Kh2 {[%emt 0:00:21]} Nf5 {[%emt 0:00:43]} 34. Be1 {[%emt 0:00:29]} Nd6 {[%emt 0:00:22]} 35. Qe3 {[%emt 0:04:45]} Qf5 {[%emt 0:01:02]} 36. Bxc3 {[%emt 0:01:42]} Qxc2 {[%emt 0:00:28]} 37. Qxe6 {[%emt 0:00:32]} Qe4 {[%emt 0:00:33]} 38. Be5 {[%emt 0:05:18]} Ka7 {[%emt 0:00:05]} 39. Rh6 {[%emt 0:01:19]} Rd2 {[%emt 0:00:34]} 40. Rg6 {[%emt 0:00:10]} Qe2 {[%emt 0:00:52]} 41. Bd4+ {[%emt 0:00:20]} Kb8 {[%emt 0:00:23]} 42. Qxd6+ {[%emt 0:00:13]} 1-0

[Event "8th Brazilian Open SESC Caioba 2024"]
[Site "Caioba"]
[Date "2024.06.29"]
[Round "8.15"]
[White "Amura, Claudia"]
[Black "De Siqueira, Luigy Lira"]
[Result "1-0"]
[ECO "D36"]
[WhiteElo "2167"]
[BlackElo "2242"]
[Annotator "RC"]
[PlyCount "105"]
[EventDate "2024.06.15"]
[EventCountry "BRA"]
[SourceTitle "playchess.com"]
[Source "ChessBase"]
[SourceQuality "1"]
[TimeControl "5400+30"]

1. d4 {[%emt 0:00:09]} d5 {[%emt 0:04:24]} 2. c4 {[%emt 0:00:11]} e6 {[%emt 0:00:39]} 3. Nc3 {[%emt 0:00:05]} Nf6 {[%emt 0:00:05]} 4. Bg5 {[%emt 0:00:38]} c6 {[%emt 0:01:46]} 5. cxd5 {[%emt 0:00:25]} exd5 {[%emt 0:00:14]} 6. Qc2 {[%emt 0:00:14]} h6 {[%emt 0:00:45]} 7. Bh4 {[%emt 0:00:28]} Be7 {[%emt 0:00:23]} 8. e3 {[%emt 0:00:06]} Nbd7 {[%emt 0:00:21]} 9. Bd3 {[%emt 0:02:45]} O-O {[%emt 0:00:11]} 10. Nf3 {[%emt 0:00:14]} Re8 {[%emt 0:00:11]} 11. O-O {[%emt 0:00:05]} Ne4 {[%emt 0:00:16]} 12. Bxe4 {[%emt 0:00:10]} Bxh4 {[%emt 0:00:07]} 13. Bh7+ {[%emt 0:00:03]} Kh8 {[%emt 0:00:06]} 14. Nxh4 {[%emt 0:00:06]} Qxh4 {[%emt 0:00:08]} 15. Bd3 {[%emt 0:00:03]} Nf6 {[%emt 0:01:06]} 16. b4 {[%emt 0:01:38]} a6 {[%emt 0:03:06]} 17. a4 {[%emt 0:00:20]} Ng4 {[%emt 0:33:54]} 18. h3 {[%emt 0:00:31]} Nf6 {[%emt 0:00:02]} 19. Ne2 {[%emt 0:10:10]} Bd7 {[%emt 0:05:31]} 20. Nf4 {[%emt 0:13:08]} Ne4 {[%emt 0:03:29]} 21. Kh2 {[%emt 0:10:30]} Nd6 {[%emt 0:01:49]} 22. Qc5 {[%emt 0:08:01]} Qe7 {[%emt 0:07:37]} 23. b5 {[%emt 0:02:32]} Nc4 {[%emt 0:25:39]} 24. Qxe7 {[%emt 0:10:00]} Rxe7 {[%emt 0:00:04]} 25. Bxc4 {[%emt 0:00:15]} dxc4 {[%emt 0:00:06]} 26. b6 {[%emt 0:00:11]} a5 {[%emt 0:05:03]} 27. Rfc1 {[%emt 0:06:44]} g5 {[%emt 0:01:40]} 28. Ne2 {[%emt 0:00:15]} Bf5 {[%emt 0:00:07]} 29. Rc3 {[%emt 0:00:24]} Ra6 {[%emt 0:01:21]} 30. g4 {[%emt 0:01:10]} Be4 {[%emt 0:01:30]} 31. Nc1 {[%emt 0:01:46]} Rxb6 {[%emt 0:00:03]} 32. Rxc4 {[%emt 0:00:14]} Rb2 {[%emt 0:01:19]} 33. Kg3 {[%emt 0:00:28]} Kg7 {[%emt 0:00:25]} 34. Rc3 {[%emt 0:03:14]} Kg6 {[%emt 0:02:10]} 35. Ra2 {[%emt 0:02:06]} Rxa2 {[%emt 0:00:14]} 36. Nxa2 {[%emt 0:00:05]} b5 {[%emt 0:00:57]} 37. Rc5 {[%emt 0:01:27]} b4 {[%emt 0:00:26]} 38. Nc1 {[%emt 0:00:05]} Rb7 {[%emt 0:00:24]} 39. f3 {[%emt 0:00:35]} Bb1 {[%emt 0:01:23]} 40. Rxc6+ {[%emt 0:01:17]} Kg7 {[%emt 0:00:01]} 41. Nb3 {[%emt 0:00:17]} Ba2 {[%emt 0:00:16]} 42. Nc5 {[%emt 0:09:06]} Rb8 {[%emt 0:00:04]} 43. Nd3 {[%emt 0:00:09]} Bb3 {[%emt 0:01:18]} 44. Nb2 {[%emt 0:00:09]} Be6 {[%emt 0:00:17]} 45. e4 {[%emt 0:03:14]} b3 {[%emt 0:00:06]} 46. d5 {[%emt 0:00:59]} Bd7 {[%emt 0:00:04]} 47. Rc7 {[%emt 0:01:19]} Bxa4 {[%emt 0:00:58]} 48. Nxa4 {[%emt 0:00:06]} b2 {[%emt 0:00:03]} 49. Nxb2 {[%emt 0:00:04]} Rxb2 {[%emt 0:00:02]} 50. Ra7 {[%emt 0:00:11]} Ra2 {[%emt 0:00:20]} 51. e5 {[%emt 0:04:48]} Kf8 {[%emt 0:00:24]} 52. d6 {[%emt 0:02:55]} a4 {[%emt 0:00:15]} 53. Rc7 {[%emt 0:10:55]} 1-0

[Event "8th Brazilian Open SESC Caioba 2024"]
[Site "Caioba"]
[Date "2024.06.30"]
[Round "9.1"]
[White "Mekhitarian, Krikor Sevag"]
[Black "Santiago, Yago De Moura"]
[Result "1/2-1/2"]
[ECO "D58"]
[WhiteElo "2554"]
[BlackElo "2462"]
[Annotator "TA"]
[PlyCount "27"]
[EventDate "2024.06.15"]
[EventCountry "BRA"]
[SourceTitle "playchess.com"]
[Source "ChessBase"]
[SourceQuality "1"]
[TimeControl "5400+30"]

{[%evp 22,27,7,0,20,0,0,0]} 1. d4 {[%emt 0:00:03]} d5 {[%emt 0:04:13]} 2. c4 {[%emt 0:00:07]} e6 {[%emt 0:00:09]} 3. Nf3 {[%emt 0:00:12]} Nf6 {[%emt 0:00:26]} 4. Nc3 {[%emt 0:00:15]} Be7 {[%emt 0:00:52]} 5. Bg5 {[%emt 0:00:31]} O-O {[%emt 0:01:01]} 6. e3 {[%emt 0:00:05]} h6 {[%emt 0:01:00]} 7. Bh4 {[%emt 0:00:15]} b6 {[%emt 0:01:27]} 8. Bd3 {[%emt 0:00:50]} dxc4 {[%emt 0:01:48]} 9. Bxc4 {[%emt 0:00:31]} Bb7 {[%emt 0:00:12]} 10. O-O {[%emt 0:01:06]} Nbd7 {[%emt 0:00:36]} 11. Qe2 {[%emt 0:01:45]} Ne4 {[%emt 0:01:49]} 12. Bxe7 {[%emt 0:01:24] The position is equal.} Qxe7 {[%emt 0:00:26]} 13. Nxe4 {[%emt 0:00:20]} Bxe4 {[%emt 0:00:10]} 14. Bd3 {[%emt 0:00:14] An uneventful encounter.   OK:         	White=1     	---} 1/2-1/2

[Event "8th Brazilian Open SESC Caioba 2024"]
[Site "Caioba"]
[Date "2024.06.30"]
[Round "9.3"]
[White "Rodrigues, Edgar"]
[Black "Delgado Ramirez, Neuris"]
[Result "1/2-1/2"]
[ECO "E04"]
[WhiteElo "2229"]
[BlackElo "2487"]
[Annotator "TA"]
[PlyCount "51"]
[EventDate "2024.06.15"]
[EventCountry "BRA"]
[SourceTitle "playchess.com"]
[Source "ChessBase"]
[SourceQuality "1"]
[TimeControl "5400+30"]

{[%evp 11,51,18,29,25,25,24,31,19,21,7,18,18,62,63,93,38,41,39,53,45,52,47,41,45,33,44,125,119,218,235,243,218,239,215,239,209,275,254,226,194,203,172]} 1. d4 {[%emt 0:00:09]} Nf6 {[%emt 0:02:23]} 2. c4 {[%emt 0:00:06]} e6 {[%emt 0:00:32]} 3. g3 {[%emt 0:00:07]} Bb4+ {[%emt 0:02:33]} 4. Nd2 {[%emt 0:00:41]} Nc6 {[%emt 0:01:51]} 5. Ngf3 {[%emt 0:01:01]} d5 {[%emt 0:00:12][%cal Bd7d5,Bd5c4,Bc4c3][%mdl 32]} 6. Bg2 {[%emt 0:04:01]} dxc4 {[%emt 0:00:33][%cal Oe8g8]} 7. O-O {[%emt 0:02:00]} c3 {[%emt 0:01:55]} 8. Nc4 {[%emt 0:03:23]} O-O {[%emt 0:04:05]} 9. Qd3 {[%emt 0:06:15] White is slightly better.} cxb2 {[%emt 0:00:19]} 10. Bxb2 {[%emt 0:00:11]} Nd5 {[%emt 0:00:19]} 11. e4 {[%emt 0:05:51][%cal Oa2a3][%mdl 1024] [#] aiming for a3! White has compensation.} Nf6 {[%emt 0:05:42]} 12. Rad1 {[%emt 0:02:32]} Be7 {[%emt 0:01:23]} 13. Rfe1 {[%emt 0:06:37] White is more active.} (13. Qb1 $16) 13... Nb4 $14 {[%emt 0:03:19]} 14. Qb1 {[%emt 0:05:07][%cal Od4d5]} Qe8 {[%emt 0:00:42] [#]} 15. d5 $1 {[%emt 0:04:31] d6 is the strong threat.} Qa4 $1 {[%emt 0:01:21]} (15... exd5 $2 16. exd5 Ng4 (16... Nbxd5 $2 17. Ng5 $18) 17. a3 $18 (17. Ng5 g6 $18)) 16. a3 $36 {[%emt 0:13:23][%mdl 2048] White has some pressure.} Nc2 {[%emt 0:12:41]} 17. Re2 {[%emt 0:00:31][%cal Be1e2,Be2c2,Bc2c7][%mdl 32]} Qxc4 {[%emt 0:00:55]} 18. Rxc2 {[%emt 0:00:14]} Qb3 {[%emt 0:05:25]} (18... Qxe4 $14 19. dxe6 (19. Rxc7 $2 {perishes.} Qxb1 20. Rxb1 Nxd5 $19) 19... fxe6) 19. Rxc7 $16 {[%emt 0:06:04]} Bxa3 {[%emt 0:00:25]} (19... Bd8 $16 {keeps fighting.} 20. Rcc1 exd5) 20. Bxa3 $18 {[%emt 0:00:27]} Qxa3 {[%emt 0:00:03]} 21. d6 {[%emt 0:02:43]} Nd7 {[%emt 0:02:24]} 22. e5 {[%emt 0:02:40]} h6 {[%emt 0:00:04]} 23. Qe4 {[%emt 0:06:14]} Qb3 {[%emt 0:07:03]} 24. Rb1 {[%emt 0:03:29]} Qd5 {[%emt 0:03:39]} 25. Qe2 {[%emt 0:05:21] Threatens to win with Rb5.} Qa5 {[%emt 0:00:17]} 26. Qb2 {[%emt 0:02:59] Weighted Error Value: White=0.09 (flawless) /Black=0.22 (precise) .  Mistake:       	White=1     	Black=2      Inaccurate:     	---       	Black=3      OK:         	White=10    	Black=7      Best:        	White=1     	---        Strong:       	---       	Black=1} 1/2-1/2

[Event "8th Brazilian Open SESC Caioba 2024"]
[Site "Caioba"]
[Date "2024.06.30"]
[Round "9.4"]
[White "Barbosa, Evandro Amorim"]
[Black "Filgueiras, Nathan Felipe"]
[Result "1/2-1/2"]
[ECO "C55"]
[WhiteElo "2491"]
[BlackElo "2294"]
[Annotator "TA"]
[PlyCount "90"]
[EventDate "2024.06.15"]
[EventCountry "BRA"]
[SourceTitle "playchess.com"]
[Source "ChessBase"]
[SourceQuality "1"]
[TimeControl "5400+30"]

{[%evp 9,90,35,33,36,33,25,36,43,38,36,33,44,32,38,91,91,81,79,163,58,53,40,39,30,31,14,30,18,24,0,2,-8,21,21,29,-4,-9,-10,81,89,93,13,7,18,18,16,27,24,49,31,54,40,45,51,52,39,52,14,34,13,20,14,29,5,26,7,23,-16,-16,-22,-23,-24,-24,-24,0,0,0,-24,-24,-44,-35,-39,-29]} 1. e4 {[%emt 0:06:45]} e5 {[%emt 0:00:04]} 2. Nf3 {[%emt 0:00:06]} Nc6 {[%emt 0:00:05]} 3. Bc4 {[%emt 0:00:04]} Nf6 {[%emt 0:00:13]} 4. d3 {[%emt 0:00:05]} h6 {[%emt 0:01:24]} 5. c3 {[%emt 0:01:14]} d6 {[%emt 0:00:59]} 6. a4 {[%emt 0:00:35][%cal Ba2a4,Ba4a5][%mdl 32]} g5 {[%emt 0:06:50]} 7. Qb3 {[%emt 0:00:15]} Qd7 {[%emt 0:00:05]} 8. a5 {[%emt 0:00:04] White is slightly better.} a6 {[%emt 0:00:01]} 9. Nbd2 {[%emt 0:06:35][%cal Bb1d2,Bd2f1,Bf1g3][%mdl 32]} Bg7 {[%emt 0:01:18]} 10. Nf1 {[%emt 0:00:48]} O-O {[%emt 0:04:30]} 11. Ng3 {[%emt 0:02:35]} Qe8 {[%emt 0:00:50]} (11... Ne7 $14) 12. O-O $16 {[%emt 0:04:05]} Rb8 {[%emt 0:07:57]} 13. Re1 {[%emt 0:00:39] White is more active.} Bg4 {[%emt 0:03:13] [#]} (13... Be6 $16) 14. Nd2 {[%emt 0:06:12]} (14. h4 $1 $18) 14... Qd7 {[%emt 0:01:40]} 15. Ndf1 {[%emt 0:01:26]} Be6 {[%emt 0:01:18]} 16. Ne3 {[%emt 0:03:15]} Ne7 {[%emt 0:00:44]} 17. Qd1 {[%emt 0:09:07]} d5 {[%emt 0:11:17]} 18. Ba2 {[%emt 0:04:24]} Rbd8 {[%emt 0:04:10]} 19. Qe2 {[%emt 0:08:37]} Rfe8 {[%emt 0:06:49]} 20. h3 {[%emt 0:00:46]} Qc6 {[%emt 0:05:06][%cal Rd5e4]} 21. Qf3 {[%emt 0:03:45]} Qd7 {[%emt 0:13:14]} 22. Nh5 {[%emt 0:18:50]} Nxh5 {[%emt 0:01:57]} 23. Qxh5 {[%emt 0:00:23]} d4 {[%emt 0:00:58] [#]} (23... f5 $11) 24. Ng4 $1 {[%emt 0:01:29]} Bxa2 {[%emt 0:01:21]} 25. Rxa2 {[%emt 0:00:52]} ({White should try} 25. Nxh6+ $16 Bxh6 26. Qxh6) 25... Qe6 $11 {[%emt 0:01:24]} 26. c4 {[%emt 0:00:45]} Qg6 {[%emt 0:03:05]} 27. Qxg6 {[%emt 0:00:12]} fxg6 {[%emt 0:00:08]} 28. b4 {[%emt 0:01:46][%cal Bb2b4,Bb4b5][%mdl 32]} Kf7 {[%emt 0:01:25]} 29. Bd2 {[%emt 0:02:02]} Ke6 {[%emt 0:00:25]} 30. b5 {[%emt 0:03:19]} Nc8 {[%emt 0:02:35]} 31. Rb1 {[%emt 0:00:28]} Nd6 {[%emt 0:00:13]} 32. Nh2 {[%emt 0:01:18]} Bf6 {[%emt 0:01:54]} 33. Nf3 {[%emt 0:00:09]} Kd7 {[%emt 0:00:09]} 34. Ne1 {[%emt 0:00:22]} Ra8 {[%emt 0:01:01]} 35. Nc2 {[%emt 0:00:36]} Rec8 {[%emt 0:03:30]} 36. Rab2 {[%emt 0:01:28]} Bd8 {[%emt 0:00:22]} 37. Na3 {[%emt 0:09:47]} Ke6 {[%emt 0:03:00]} 38. bxa6 {[%emt 0:01:46]} bxa6 {[%emt 0:00:22]} 39. g3 {[%emt 0:02:04]} c5 {[%emt 0:00:58]} 40. Nc2 {[%emt 0:00:05]} Bc7 {[%emt 0:00:25]} 41. Na1 {[%emt 0:00:08]} Kd7 {[%emt 0:00:26]} 42. Nb3 {[%emt 0:00:59]} Kc6 {[%emt 0:00:08]} 43. Kg2 {[%emt 0:00:54]} Rab8 {[%emt 0:01:04]} 44. Nc1 {[%emt 0:00:16]} Rxb2 {[%emt 0:01:05]} 45. Rxb2 {[%emt 0:00:02]} Nb7 {[%emt 0:13:18] Weighted Error Value: White=0.14 (very precise) /Black=0.13 (very precise) .  Mistake:       	White=2     	Black=3      Inaccurate:     	White=3     	Black=1      OK:         	White=12    	Black=17     Best:        	---       	Black=1      Strong:       	White=1     	---} 1/2-1/2

[Event "8th Brazilian Open SESC Caioba 2024"]
[Site "Caioba"]
[Date "2024.06.30"]
[Round "9.5"]
[White "Rodi, Luis Ernesto"]
[Black "Di Berardino, Diego Rafael"]
[Result "0-1"]
[ECO "C01"]
[WhiteElo "2208"]
[BlackElo "2473"]
[Annotator "TA"]
[PlyCount "108"]
[EventDate "2024.06.15"]
[EventCountry "BRA"]
[SourceTitle "playchess.com"]
[Source "ChessBase"]
[SourceQuality "1"]
[TimeControl "5400+30"]

{[%evp 11,108,0,10,6,4,-18,0,0,0,0,15,19,0,-21,-32,-103,-23,-23,-25,-25,-23,-20,-22,-26,-22,-20,-11,-16,12,14,16,20,10,18,12,5,32,45,35,31,26,27,22,23,61,0,4,-8,-7,-139,-144,-152,-145,-206,-207,-198,-188,-197,-189,-266,-264,-273,-258,-289,-270,-289,-282,-289,-289,-289,-283,-285,-277,-487,-491,-499,-522,-527,-535,-539,-531,-652,-686,-680,-671,-664,-643,-733,-733,-714,-642,-839,-839,-793,-751,-673,-649,-605,-591]} 1. e4 {[%emt 0:00:04]} e6 {[%emt 0:01:27]} 2. d4 {[%emt 0:03:07]} d5 {[%emt 0:00:05]} 3. Nc3 {[%emt 0:00:49]} Nf6 {[%emt 0:01:16]} 4. exd5 {[%emt 0:00:08]} exd5 {[%emt 0:04:22]} 5. Bg5 {[%emt 0:00:33]} c6 {[%emt 0:00:50]} 6. Bd3 {[%emt 0:00:40]} Be7 {[%emt 0:05:27]} 7. Qd2 {[%emt 0:02:29]} O-O {[%emt 0:02:21]} 8. O-O-O {[%emt 0:00:10]} b5 {[%emt 0:04:10]} 9. Re1 {[%emt 0:01:02] The position is equal.} Be6 {[%emt 0:14:11]} 10. Nf3 {[%emt 0:00:46]} Na6 {[%emt 0:12:08]} 11. Kb1 {[%emt 0:09:25]} Nb4 {[%emt 0:01:43]} 12. Ne5 {[%emt 0:03:49][%cal Og2g4]} Rc8 {[%emt 0:16:08]} 13. Qf4 {[%emt 0:04:04] [#]} (13. Bxf6 $15 Bxf6 14. f4) 13... Nh5 {[%emt 0:05:58]} (13... c5 $1 $17) 14. Bxe7 $11 {[%emt 0:06:21]} Nxf4 {[%emt 0:00:06]} 15. Bxd8 {[%emt 0:00:05]} Rfxd8 {[%emt 0:00:05]} 16. g3 {[%emt 0:02:03]} ({Much worse is} 16. Bf1 Bf5 17. Rc1 c5 18. Nxb5 a6 $17) 16... Nfxd3 {[%emt 0:00:48]} 17. Nxd3 {[%emt 0:00:12]} Nxd3 {[%emt 0:00:35]} 18. cxd3 {[%emt 0:00:05]} Bf5 {[%emt 0:01:05]} 19. Kc2 {[%emt 0:03:56]} c5 {[%emt 0:07:10]} 20. dxc5 {[%emt 0:02:20]} Rxc5 {[%emt 0:00:25] Hoping for ...d4.} 21. Kd2 {[%emt 0:00:29]} b4 {[%emt 0:03:54]} 22. Ne2 {[%emt 0:00:42]} d4 {[%emt 0:00:02]} 23. Rc1 {[%emt 0:02:12]} Ra5 {[%emt 0:00:11]} 24. Rc4 {[%emt 0:00:23][%csl LRb4,LRd4]} Rxa2 {[%emt 0:05:47]} 25. Rxb4 {[%emt 0:00:52]} a5 {[%emt 0:03:56]} 26. Rb6 {[%emt 0:01:03][%cal Oe2d4]} h6 {[%emt 0:00:50]} 27. Rc1 {[%emt 0:03:17]} a4 {[%emt 0:01:46]} 28. Rc5 {[%emt 0:01:38]} ({White should try} 28. Rb1 $14 a3 29. Rb4) 28... a3 {[%emt 0:01:09]} 29. Rxf5 {[%emt 0:17:42] Rfb5 is the strong threat.} axb2 {[%emt 0:00:09]} 30. Kd1 {[%emt 0:00:05] [#] White is now going downhill.} (30. Kc2 $1 $11 {was the only way to keep the balance.} b1=R+ 31. Kxb1 Rxe2 32. Rb7) 30... Re8 $1 $36 {[%emt 0:03:56][%mdl 2048] Black is really pushing.} 31. Nxd4 {[%emt 0:00:42] Black must now prevent Rfb5.} Rc8 {[%emt 0:00:04]} 32. Ne2 {[%emt 0:06:35] Prevents Rc1+.} (32. Nc2 $17 {was worth a try.}) 32... Ra1+ $19 {[%emt 0:00:12]} 33. Kd2 {[%emt 0:00:05]} b1=Q {[%emt 0:00:05]} ({Worse is} 33... b1=B 34. Rbb5 $16) 34. Rxb1 {[%emt 0:00:03]} Rxb1 {[%emt 0:00:07][%mdl 4096] Endgame. KRR-KRN} 35. Nf4 {[%emt 0:00:40]} (35. Re5 {was necessary.}) 35... Rb2+ {[%emt 0:01:41]} 36. Ke3 {[%emt 0:00:08]} Rcc2 {[%emt 0:00:38]} 37. Nh3 {[%emt 0:00:50]} g6 {[%emt 0:00:51]} 38. Rd5 {[%emt 0:00:13]} Kg7 {[%emt 0:00:11]} 39. Kf3 {[%emt 0:01:00]} Rd2 {[%emt 0:00:32]} 40. Ke3 {[%emt 0:00:24]} Rd1 {[%emt 0:00:36]} 41. Nf4 {[%emt 0:00:47]} Rf1 {[%emt 0:01:21]} 42. Rd7 $2 {[%emt 0:04:38]} (42. Nh3 {was the only chance.}) 42... Rbxf2 {[%emt 0:00:36] Black is clearly winning.} ({Weaker is} 42... Rfxf2 43. h3 $19) 43. d4 {[%emt 0:00:58]} Rxh2 {[%emt 0:00:11]} 44. Ne6+ {[%emt 0:00:14]} Kg8 {[%emt 0:01:18]} 45. Rd8+ {[%emt 0:01:12]} Kh7 {[%emt 0:00:05]} 46. Nf4 {[%emt 0:00:04]} Re1+ {[%emt 0:00:52]} 47. Kf3 {[%emt 0:00:07]} Ra2 {[%emt 0:00:47]} 48. Rd7 {[%emt 0:00:17]} Kg8 {[%emt 0:00:14]} 49. d5 {[%emt 0:00:08]} Ra3+ {[%emt 0:00:06]} 50. Kf2 {[%emt 0:00:59]} Rb1 {[%emt 0:01:44] ...Rb2+ would now be deadly.} 51. d6 {[%emt 0:01:25]} Rb2+ {[%emt 0:00:03]} 52. Ne2 {[%emt 0:00:04]} Rd3 {[%emt 0:00:09]} 53. Rd8+ {[%emt 0:02:13]} Kg7 {[%emt 0:00:05]} 54. d7 {[%emt 0:00:04]} Rbd2 {[%emt 0:00:32] Weighted Error Value: White=0.26 (precise) /Black=0.07 (flawless) .  Mistake:       	White=6     	Black=1      Inaccurate:     	---       	Black=3      OK:         	White=13    	Black=17     Best:        	White=3     	Black=6      Strong:       	---       	Black=1} 0-1

[Event "8th Brazilian Open SESC Caioba 2024"]
[Site "Caioba"]
[Date "2024.06.30"]
[Round "9.6"]
[White "Do Valle Cardoso, Lucas"]
[Black "Cubas, Jose Fernando"]
[Result "1-0"]
[ECO "B51"]
[WhiteElo "2356"]
[BlackElo "2417"]
[Annotator "RC"]
[PlyCount "95"]
[EventDate "2024.06.15"]
[EventCountry "BRA"]
[SourceTitle "playchess.com"]
[Source "ChessBase"]
[SourceQuality "1"]
[TimeControl "5400+30"]

1. e4 {[%emt 0:00:34]} c5 {[%emt 0:03:49]} 2. Nf3 {[%emt 0:00:07]} Nc6 {[%emt 0:00:05]} 3. Bb5 {[%emt 0:00:19]} e5 {[%emt 0:05:11]} 4. O-O {[%emt 0:07:04]} d6 {[%emt 0:03:04]} 5. c3 {[%emt 0:01:37]} Nf6 {[%emt 0:34:36]} 6. d4 {[%emt 0:03:31]} Bd7 {[%emt 0:01:21]} 7. Re1 {[%emt 0:06:00]} Be7 {[%emt 0:03:45]} 8. Bg5 {[%emt 0:15:10]} O-O {[%emt 0:02:40]} 9. dxc5 {[%emt 0:12:28]} dxc5 {[%emt 0:00:39]} 10. Nbd2 {[%emt 0:04:11]} Ng4 {[%emt 0:20:48]} 11. Bxe7 {[%emt 0:02:07]} Qxe7 {[%emt 0:00:07]} 12. h3 {[%emt 0:04:24]} Nf6 {[%emt 0:01:13]} 13. Nc4 {[%emt 0:01:20]} a6 {[%emt 0:01:20]} 14. Bxc6 {[%emt 0:00:31]} Bxc6 {[%emt 0:00:04]} 15. Nfxe5 {[%emt 0:02:05]} Bxe4 {[%emt 0:11:06]} 16. Ng4 {[%emt 0:09:00]} Nxg4 {[%emt 0:00:10]} 17. hxg4 {[%emt 0:00:03]} f5 {[%emt 0:00:08]} 18. gxf5 {[%emt 0:03:53]} Qh4 {[%emt 0:00:25]} 19. Nd6 {[%emt 0:02:58]} Bc6 {[%emt 0:05:38]} 20. Qb3+ {[%emt 0:01:03]} c4 {[%emt 0:00:21]} 21. Qxc4+ {[%emt 0:00:08]} Qxc4 {[%emt 0:00:04]} 22. Nxc4 {[%emt 0:00:08]} Rxf5 {[%emt 0:00:01]} 23. Ne5 {[%emt 0:04:12]} Bd5 {[%emt 0:01:22]} 24. b3 {[%emt 0:04:52]} Re8 {[%emt 0:01:31]} 25. Ng4 {[%emt 0:00:29]} Rxe1+ {[%emt 0:00:52]} 26. Rxe1 {[%emt 0:00:02]} Bc6 {[%emt 0:00:04]} 27. f3 {[%emt 0:01:38]} Rd5 {[%emt 0:02:06]} 28. Kf2 {[%emt 0:01:08]} Rd2+ {[%emt 0:00:18]} 29. Re2 {[%emt 0:00:04]} Rd1 {[%emt 0:01:07]} 30. Ne5 {[%emt 0:01:04]} a5 {[%emt 0:00:21]} 31. Nxc6 {[%emt 0:01:39]} bxc6 {[%emt 0:00:01]} 32. Ke3 {[%emt 0:00:18]} Rd6 {[%emt 0:01:11]} 33. Rd2 {[%emt 0:00:17]} Re6+ {[%emt 0:00:01]} 34. Kd3 {[%emt 0:00:08]} Rd6+ {[%emt 0:00:01]} 35. Kc2 {[%emt 0:00:08]} Re6 {[%emt 0:00:06]} 36. Kb2 {[%emt 0:13:50]} h5 {[%emt 0:01:02]} 37. b4 {[%emt 0:00:00]} Kh7 {[%emt 0:01:08]} 38. Kb3 {[%emt 0:00:00]} Re5 {[%emt 0:00:18]} 39. a4 {[%emt 0:00:00]} g6 {[%emt 0:01:18]} 40. Kc4 {[%emt 0:00:00]} Kh6 {[%emt 0:00:17]} 41. b5 {[%emt 0:00:00]} cxb5+ {[%emt 0:00:35]} 42. axb5 {[%emt 0:00:00]} h4 {[%emt 0:00:13]} 43. b6 {[%emt 0:00:00]} a4 {[%emt 0:00:32]} 44. b7 {[%emt 0:00:00]} Re8 {[%emt 0:00:02]} 45. Kb4 {[%emt 0:00:00]} Rb8 {[%emt 0:00:10]} 46. Rd7 {[%emt 0:00:00]} Kg5 {[%emt 0:00:11]} 47. c4 {[%emt 0:00:00]} Kf4 {[%emt 0:00:06]} 48. Rg7 {[%emt 0:00:00]} 1-0